[Event "GER-ch-Seniors-50 2019"]
[Site "Radebeul"]
[Date "2019.04.30"]
[Round "5.3"]
[White "Mueller, Michael"]
[Black "Belke, Frank"]
[Result "1/2-1/2"]
[ECO "A48"]
[WhiteElo "2163"]
[BlackElo "2283"]
[Annotator "NA"]
[PlyCount "179"]
[EventDate "2019.04.26"]
[EventType "swiss"]
[EventCountry "GER"]
[SourceTitle "playchess.com"]
[Source "ChessBase"]
[SourceQuality "1"]
[TimeControl "40/5400+30:1800+30"]

1. d4 {[%emt 0:00:00]} Nf6 {[%emt 0:00:00]} 2. Nf3 {[%emt 0:00:00]} g6 {[%emt 0:00:00]} 3. Bf4 {[%emt 0:00:10]} Bg7 {[%emt 0:00:00]} 4. e3 {[%emt 0:00:11]} O-O {[%emt 0:00:00]} 5. h3 {[%emt 0:00:06]} d5 {[%emt 0:00:00]} 6. Bd3 {[%emt 0:00:22]} c5 {[%emt 0:00:00]} 7. c3 {[%emt 0:00:07]} b6 {[%emt 0:00:05]} 8. Qe2 {[%emt 0:00:25]} Bb7 {[%emt 0:00:14]} 9. Nbd2 {[%emt 0:00:08]} Nc6 {[%emt 0:00:13]} 10. O-O {[%emt 0:00:40]} Nd7 {[%emt 0:00:57] A48: 1 d4 Nf6 2 Nf3 g6: Torre, London and Colle Systems} 11. Rad1 {[%emt 0:00:51]} (11. Rfd1 e5 12. dxe5 Ndxe5 13. Bb5 a6 14. Bxc6 Nxf3+ 15. Nxf3 Bxc6 16. c4 Re8 17. cxd5 Bxd5 18. Rd2 Bxf3 19. gxf3 {0-1 (54) Tang,A (2513)-Yu,Y (2760) chess.com INT 2018}) 11... e5 {[%emt 0:05:59]} 12. dxe5 {[%emt 0:01:00]} Ndxe5 {[%emt 0:00:03]} 13. Ba6 {[%emt 0:01:05]} Bxa6 {[%emt 0:01:02]} 14. Qxa6 {[%emt 0:00:10]} Qe7 {[%emt 0:01:13]} 15. Nxe5 $146 {[%emt 0:01:15]} ({Predecessor:} 15. Rfe1 Rad8 16. Re2 c4 17. Bxe5 Bxe5 18. Nf1 {1-0 (53) Vokoun,J (2195)-Rous,D (2161) Prague 2014}) 15... Nxe5 {[%emt 0:00:01]} 16. Bxe5 {[%emt 0:01:15]} Qxe5 {[%emt 0:01:09]} 17. Nf3 {[%emt 0:00:22]} Qe6 {[%emt 0:00:04]} 18. Rfe1 {[%emt 0:01:40]} Qc6 {[%emt 0:07:27]} 19. Rd2 {[%emt 0:01:49]} Rfd8 {[%emt 0:04:00]} 20. Red1 {[%emt 0:00:39]} Bf6 {[%emt 0:01:30]} 21. Qe2 {[%emt 0:08:00]} Qe6 {[%emt 0:17:32]} 22. Rd3 {[%emt 0:03:13]} d4 {[%emt 0:09:03]} 23. cxd4 {[%emt 0:00:57]} Qxa2 {[%emt 0:00:03]} 24. dxc5 {[%emt 0:08:24]} Rxd3 {[%emt 0:00:24]} 25. Rxd3 {[%emt 0:00:20]} bxc5 {[%emt 0:00:07]} 26. Rd7 {[%emt 0:04:53]} Rb8 {[%emt 0:06:41]} 27. e4 {[%emt 0:09:41]} Rxb2 {[%emt 0:31:21]} 28. Qe3 {[%emt 0:01:28]} Qb1+ {[%emt 0:00:11]} 29. Kh2 {[%emt 0:00:25]} Rb7 {[%emt 0:00:02]} 30. Rxb7 {[%emt 0:02:26]} Qxb7 {[%emt 0:00:02]} 31. Qxc5 {[%emt 0:00:14]} Bd8 {[%emt 0:05:20]} 32. e5 {[%emt 0:04:38]} Be7 {[%emt 0:01:58]} 33. Qe3 {[%emt 0:02:52]} Qb6 {[%emt 0:01:27]} ({Black should play} 33... a5 $17 34. Ng5 a4) 34. Qd2 {[%emt 0:02:22]} a5 {[%emt 0:01:46]} 35. Qd7 {[%emt 0:01:32]} Qc5 {[%emt 0:00:31]} 36. Kg1 {[%emt 0:01:57]} Kg7 {[%emt 0:02:50]} 37. g3 {[%emt 0:03:32] [#]} (37. g4 $11) 37... Qb4 $1 {[%emt 0:00:51]} 38. e6 {[%emt 0:02:40]} Qd6 {[%emt 0:00:25]} 39. Qb5 {[%emt 0:01:23]} Qxe6 {[%emt 0:02:49]} 40. Qxa5 {[%emt 0:00:16]} Qxh3 {[%emt 0:00:20]} 41. Qe5+ {[%emt 0:30:23]} Bf6 {[%emt 0:30:23]} 42. Qe4 {[%emt 0:01:37]} h5 {[%emt 0:02:11]} 43. Qf4 {[%emt 0:01:18]} Qd7 {[%emt 0:00:00]} 44. Qe4 {[%emt 0:00:00]} Qh3 {[%emt 0:00:00]} 45. Qf4 $1 {[%emt 0:00:00]} Qe6 {[%emt 0:00:00]} 46. Kg2 {[%emt 0:00:00]} Qd5 {[%emt 0:00:00]} 47. Qd2 {[%emt 0:00:00]} Qe4 {[%emt 0:00:00]} 48. Qe1 {[%emt 0:00:00]} Qc6 {[%emt 0:00:00]} 49. Qe3 {[%emt 0:00:00]} g5 {[%emt 0:00:00]} 50. Kg1 {[%emt 0:00:00]} Qd5 {[%emt 0:00:00]} 51. Qe2 {[%emt 0:00:00]} Qf5 {[%emt 0:00:00]} 52. Nh2 {[%emt 0:00:00]} g4 {[%emt 0:00:00]} 53. Nf1 {[%emt 0:00:00]} Bd4 {[%emt 0:00:00]} 54. Qd2 {[%emt 0:00:00]} Qe5 {[%emt 0:00:00]} 55. Qd3 {[%emt 0:00:00]} f5 {[%emt 0:00:00]} ({Black should try} 55... Bc5 $17 56. Qd2) 56. Qd2 {[%emt 0:00:00]} Kg6 {[%emt 0:00:00]} 57. Qd3 {[%emt 0:00:00]} Qe4 {[%emt 0:01:42]} 58. Qa6+ {[%emt 0:00:00]} Kg5 {[%emt 0:00:52]} 59. Qc8 {[%emt 0:00:00]} Qd5 {[%emt 0:00:41]} 60. Qc1+ {[%emt 0:00:00]} Kg6 {[%emt 0:00:22]} 61. Qc8 {[%emt 0:00:00]} Kg5 {[%emt 0:04:10]} 62. Qc1+ {[%emt 0:00:00]} Kg6 {[%emt 0:00:07]} 63. Qc8 {[%emt 0:00:00]} Qe5 {[%emt 0:00:22]} 64. Qg8+ {[%emt 0:00:00]} Qg7 {[%emt 0:00:12]} 65. Qe6+ {[%emt 0:00:00]} Kg5 {[%emt 0:00:18]} 66. Ne3 {[%emt 0:01:29]} Bxe3 {[%emt 0:00:02]} 67. Qxe3+ {[%emt 0:00:02]} Kg6 {[%emt 0:00:00]} 68. Qe6+ {[%emt 0:00:18]} Qf6 {[%emt 0:00:20]} 69. Qg8+ {[%emt 0:00:21]} Kh6 {[%emt 0:00:02]} 70. Kg2 {[%emt 0:00:32]} f4 {[%emt 0:01:07]} 71. gxf4 {[%emt 0:00:14]} Qxf4 {[%emt 0:00:03]} 72. Qh8+ {[%emt 0:00:19]} Kg5 {[%emt 0:00:17]} 73. Qg7+ {[%emt 0:04:43]} Kh4 {[%emt 0:01:08]} 74. Qe7+ {[%emt 0:00:21]} Qg5 {[%emt 0:00:11]} 75. Qe4 {[%emt 0:00:44]} Qf6 {[%emt 0:00:34]} 76. Qd5 {[%emt 0:00:31]} Qe7 {[%emt 0:00:46]} 77. Qc6 {[%emt 0:00:30]} Qe5 {[%emt 0:01:02]} 78. Qc4 {[%emt 0:00:39]} Kg5 {[%emt 0:01:51]} 79. Qg8+ {[%emt 0:00:34]} Kf4 {[%emt 0:00:09]} 80. Qf7+ {[%emt 0:00:28]} Qf5 {[%emt 0:00:16]} 81. Qc7+ {[%emt 0:00:21]} Qe5 {[%emt 0:01:17]} 82. Qf7+ {[%emt 0:00:17]} Kg5 {[%emt 0:00:46]} 83. Qg8+ {[%emt 0:00:18]} Kf5 {[%emt 0:00:59]} 84. Qf7+ {[%emt 0:00:19]} Ke4 {[%emt 0:00:38]} 85. f3+ {[%emt 0:00:13]} Ke3 {[%emt 0:01:07]} 86. fxg4 $11 {[%emt 0:00:35]} Qe4+ {[%emt 0:00:13]} 87. Kg3 {[%emt 0:00:33]} Qxg4+ {[%emt 0:00:40]} 88. Kh2 {[%emt 0:00:01]} Qh4+ {[%emt 0:00:26]} 89. Kg2 {[%emt 0:00:10]} Qe4+ {[%emt 0:00:01]} 90. Kh2 {[%emt 0:00:22]} 1/2-1/2

[Event "GER-ch-Seniors-50 2019"]
[Site "Radebeul"]
[Date "2019.04.29"]
[Round "5.4"]
[White "Stahr, Ralf-Peter"]
[Black "Schmidt, Gerhard"]
[Result "1-0"]
[ECO "E92"]
[WhiteElo "2160"]
[BlackElo "2077"]
[Annotator "NA"]
[PlyCount "165"]
[EventDate "2019.04.26"]
[EventType "swiss"]
[EventCountry "GER"]
[SourceTitle "playchess.com"]
[Source "ChessBase"]
[SourceQuality "1"]
[TimeControl "40/5400+30:1800+30"]

1. c4 {[%emt 0:00:00]} Nf6 {[%emt 0:00:00]} 2. Nc3 {[%emt 0:00:00]} g6 {[%emt 0:00:04]} 3. e4 {[%emt 0:00:00]} d6 {[%emt 0:00:16]} 4. d4 {[%emt 0:00:02]} Bg7 {[%emt 0:00:17]} 5. Be2 {[%emt 0:00:07]} O-O {[%emt 0:00:29]} 6. Nf3 {[%emt 0:00:06]} e5 {[%emt 0:00:38]} 7. dxe5 {[%emt 0:00:33]} dxe5 {[%emt 0:00:16]} 8. Qxd8 {[%emt 0:00:05]} Rxd8 {[%emt 0:00:12]} 9. Bg5 {[%emt 0:00:07]} Re8 {[%emt 0:15:14]} 10. Nd5 {[%emt 0:01:42]} Nxd5 {[%emt 0:00:26]} 11. cxd5 {[%emt 0:00:03]} c6 {[%emt 0:01:38]} 12. Bc4 {[%emt 0:05:00]} b5 {[%emt 0:09:49]} 13. Bb3 {[%emt 0:00:20]} Bb7 {[%emt 0:00:25]} 14. Rd1 {[%emt 0:06:17]} cxd5 {[%emt 0:06:48] E92: King's Indian: Classical: 6 Be2 e5: 7 dxe5, 7 Be3 and Petrosian System without 7...Nbd7} 15. Bxd5 {[%emt 0:00:22]} Bxd5 {[%emt 0:04:14]} 16. Rxd5 {[%emt 0:00:13]} Nc6 {[%emt 0:01:04]} 17. Ke2 {[%emt 0:05:59]} f5 {[%emt 0:03:33]} 18. Rc1 {[%emt 0:05:59]} Nd4+ $146 {[%emt 0:12:35]} ({Predecessor:} 18... Rac8 19. Rdc5 Nd4+ 20. Nxd4 Rxc5 21. Rxc5 exd4 22. f3 {½-½ (46) Gromovs,S (2375)-Dvirnyy,D (2141) Falconara Marittima 2005}) 19. Kd3 {[%emt 0:02:10]} Ne6 {[%emt 0:28:02]} 20. Rxb5 {[%emt 0:07:57]} h6 {[%emt 0:02:31]} 21. Be3 {[%emt 0:02:06]} Rad8+ {[%emt 0:00:51]} 22. Ke2 {[%emt 0:14:13]} Nd4+ {[%emt 0:02:01]} 23. Bxd4 {[%emt 0:06:49]} exd4 {[%emt 0:01:37]} 24. e5 {[%emt 0:01:40]} g5 {[%emt 0:01:16]} 25. Rcc5 {[%emt 0:01:45]} a6 {[%emt 0:00:45]} 26. Ra5 {[%emt 0:00:23]} d3+ {[%emt 0:01:03]} 27. Kd1 {[%emt 0:02:08]} Rb8 {[%emt 0:01:41]} 28. b3 {[%emt 0:00:24]} g4 {[%emt 0:01:47]} 29. Nd4 {[%emt 0:04:08]} Rb4 {[%emt 0:01:30]} 30. Nxf5 {[%emt 0:06:40]} Rf4 {[%emt 0:00:22]} 31. Nxg7 {[%emt 0:00:07]} Kxg7 {[%emt 0:00:14]} 32. Kd2 {[%emt 0:01:42]} Rxf2+ {[%emt 0:01:07]} 33. Kxd3 {[%emt 0:00:09]} Rxg2 {[%emt 0:01:09]} 34. Rxa6 {[%emt 0:01:02]} Rxh2 {[%emt 0:01:29]} 35. Ke4 {[%emt 0:00:40]} Rf2 {[%emt 0:00:11]} 36. Rc7+ {[%emt 0:00:23]} Rf7 {[%emt 0:01:35]} 37. Rxf7+ {[%emt 0:00:13]} Kxf7 {[%emt 0:00:03]} 38. Rxh6 {[%emt 0:00:08]} Rg8 {[%emt 0:00:07]} 39. Rh2 {[%emt 0:03:46]} g3 {[%emt 0:00:28]} 40. Rg2 {[%emt 0:00:14]} Ke6 {[%emt 0:00:26]} 41. Kf4 {[%emt 0:30:49]} Rf8+ {[%emt 0:30:47]} 42. Kxg3 {[%emt 0:00:44]} Kxe5 {[%emt 0:00:12]} 43. Rf2 {[%emt 0:00:54]} Rg8+ {[%emt 0:00:23]} 44. Kf3 {[%emt 0:00:21]} Kd4 {[%emt 0:00:08]} 45. Ke2 {[%emt 0:01:23]} Kc3 {[%emt 0:01:44]} 46. Ke3 {[%emt 0:06:09]} Re8+ {[%emt 0:00:41]} 47. Kf3 {[%emt 0:00:19]} Re7 {[%emt 0:00:00]} 48. Re2 {[%emt 0:00:00]} Rf7+ {[%emt 0:00:00]} 49. Ke3 {[%emt 0:00:00]} Rf8 {[%emt 0:00:00]} 50. Rh2 {[%emt 0:00:00]} Re8+ {[%emt 0:00:00]} 51. Kf4 {[%emt 0:00:00]} Re1 {[%emt 0:00:00]} (51... Kb4 $16) 52. Rh3+ {[%emt 0:00:00]} Kb4 {[%emt 0:00:00]} 53. Re3 {[%emt 0:00:00]} Ra1 {[%emt 0:00:00]} 54. Re2 {[%emt 0:00:00]} (54. Re4+ $18 Kb5 55. a4+ Ka5 56. Re5+ Ka6 57. Rb5) 54... Ka3 {[%emt 0:00:00]} 55. Ke3 {[%emt 0:00:00]} Rd1 {[%emt 0:00:00]} 56. Rd2 {[%emt 0:00:00]} Re1+ {[%emt 0:00:00]} 57. Kd3 {[%emt 0:00:00]} Re8 {[%emt 0:00:00]} 58. Kc4 {[%emt 0:00:00]} Rc8+ {[%emt 0:00:00]} 59. Kb5 {[%emt 0:00:00]} Rb8+ {[%emt 0:00:00]} 60. Kc6 {[%emt 0:00:00]} Rc8+ {[%emt 0:00:00]} 61. Kb6 {[%emt 0:00:00]} Rb8+ {[%emt 0:00:00]} 62. Kc7 {[%emt 0:00:00]} Rb4 {[%emt 0:00:00]} 63. Rh2 {[%emt 0:00:00]} Rg4 {[%emt 0:00:00]} 64. Kc6 {[%emt 0:00:00]} Rg6+ {[%emt 0:00:00]} 65. Kc5 {[%emt 0:00:00]} Rg5+ {[%emt 0:00:00]} (65... Rg2 $1 $11 {remains equal.} 66. Rh4 Rg5+ 67. Kc4 Rg2) 66. Kc4 {[%emt 0:00:00]} Rg4+ {[%emt 0:00:00]} 67. Kc3 {[%emt 0:00:00]} Rg3+ {[%emt 0:00:00]} 68. Kd4 {[%emt 0:00:00]} Rg4+ {[%emt 0:00:00]} 69. Ke3 {[%emt 0:00:00]} Rg8 {[%emt 0:00:00]} 70. Re2 {[%emt 0:00:00]} Rf8 {[%emt 0:00:00]} 71. Kd4 {[%emt 0:00:00]} Rd8+ {[%emt 0:00:00]} 72. Kc5 {[%emt 0:00:00]} Rc8+ {[%emt 0:00:00]} 73. Kd6 {[%emt 0:00:00]} Rd8+ {[%emt 0:00:00]} 74. Kc7 {[%emt 0:00:00]} Rd4 {[%emt 0:00:00]} 75. Rc2 {[%emt 0:00:00]} Rh4 {[%emt 0:00:00]} 76. Rc4 {[%emt 0:00:00]} Rh7+ {[%emt 0:00:15] [#]} 77. Kb6 $1 {[%emt 0:00:00]} Kxa2 $2 {[%emt 0:00:19]} (77... Rh6+ $16 78. Kb5 Rh5+ 79. Rc5 Rh7) 78. b4 {[%emt 0:00:00]} Kb3 $18 {[%emt 0:00:33]} 79. Rd4 {[%emt 0:00:00]} Rh6+ {[%emt 0:12:47]} 80. Ka5 {[%emt 0:00:00]} Kc3 {[%emt 0:02:02]} 81. Re4 {[%emt 0:00:00]} Kd3 {[%emt 0:00:18]} 82. Rf4 {[%emt 0:00:09]} Ke3 {[%emt 0:00:13]} 83. Rg4 1-0

[Event "GER-ch-Seniors-50 2019"]
[Site "Radebeul"]
[Date "2019.04.30"]
[Round "5.5"]
[White "Valet, Richard"]
[Black "Schatz, Christian"]
[Result "1/2-1/2"]
[ECO "B13"]
[WhiteElo "2051"]
[BlackElo "2150"]
[Annotator "NA"]
[PlyCount "20"]
[EventDate "2019.04.26"]
[EventType "swiss"]
[EventCountry "GER"]
[SourceTitle "playchess.com"]
[Source "ChessBase"]
[SourceQuality "1"]
[TimeControl "40/5400+30:1800+30"]

1. e4 {[%emt 0:00:00]} c6 {[%emt 0:00:00]} 2. d4 {[%emt 0:00:00]} d5 {[%emt 0:00:00]} 3. exd5 {[%emt 0:00:00]} cxd5 {[%emt 0:00:00]} 4. Bd3 {[%emt 0:00:00]} Nc6 {[%emt 0:00:00]} 5. c3 {[%emt 0:00:00]} g6 {[%emt 0:00:20]} 6. Bf4 {[%emt 0:00:37]} Bg7 {[%emt 0:00:07]} 7. Nf3 {[%emt 0:06:38]} Nf6 {[%emt 0:01:36]} 8. h3 {[%emt 0:06:02]} O-O {[%emt 0:00:36]} 9. Qc2 {[%emt 0:07:29]} Nd7 {[%emt 0:09:27]} 10. Nbd2 {[%emt 0:12:23]} e5 {[%emt 0:01:36]} 1/2-1/2

[Event "GER-ch-Seniors-50 2019"]
[Site "Radebeul"]
[Date "2019.04.30"]
[Round "5.6"]
[White "Schulze, Andreas"]
[Black "Steiger, Michael"]
[Result "0-1"]
[ECO "B40"]
[WhiteElo "2135"]
[BlackElo "1982"]
[Annotator "NA"]
[PlyCount "84"]
[EventDate "2019.04.26"]
[EventType "swiss"]
[EventCountry "GER"]
[SourceTitle "playchess.com"]
[Source "ChessBase"]
[SourceQuality "1"]
[TimeControl "40/5400+30:1800+30"]

1. e4 {[%emt 0:00:00]} c5 {[%emt 0:00:00]} 2. Nf3 {[%emt 0:01:43]} e6 {[%emt 0:00:00]} 3. d4 {[%emt 0:00:09]} cxd4 {[%emt 0:00:00]} 4. Nxd4 {[%emt 0:00:05]} Qb6 {[%emt 0:00:15]} 5. Nb3 {[%emt 0:05:51]} Qc7 {[%emt 0:01:10]} 6. Bd3 {[%emt 0:01:28]} Nf6 {[%emt 0:01:16]} 7. Be3 {[%emt 0:01:17] B40: Sicilian: 2...e6, Unusual lines} d6 {[%emt 0:05:26]} 8. N1d2 {[%emt 0:05:47]} (8. f4 Nbd7 9. N1d2 b6 10. g4 h6 11. Qe2 Bb7 12. O-O-O Be7 13. h4 h5 14. g5 Ng4 {1-0 (53) Ponomariov,R (2709)-Novikov,S (2513) Tallinn 2016}) 8... Be7 {[%emt 0:03:14]} 9. O-O {[%emt 0:00:30]} O-O {[%emt 0:05:55]} 10. f4 {[%emt 0:02:34]} e5 $146 {[%emt 0:02:28]} ({Predecessor:} 10... Nbd7 11. Qf3 b6 12. Qh3 g6 13. Nd4 Nc5 14. f5 Nxd3 15. cxd3 {1-0 (27) Demirez,I (1515)-Kelemci,M (1624) Konya 2018}) 11. Be2 {[%emt 0:06:22]} d5 {[%emt 0:16:04]} 12. fxe5 {[%emt 0:10:17]} Nxe4 {[%emt 0:00:52]} 13. Nf3 {[%emt 0:09:32]} Be6 {[%emt 0:05:44]} 14. Kh1 {[%emt 0:14:28]} Nc6 {[%emt 0:05:46]} 15. Bf4 {[%emt 0:06:38]} g5 {[%emt 0:04:52]} 16. Be3 {[%emt 0:02:19]} Nxe5 {[%emt 0:00:42]} 17. Nfd4 {[%emt 0:02:47]} Nc4 {[%emt 0:14:51]} 18. Bxc4 {[%emt 0:03:18]} Qxc4 {[%emt 0:01:03]} 19. Nf5 {[%emt 0:04:57]} Bf6 {[%emt 0:05:51]} 20. Nd2 {[%emt 0:04:30]} Qc7 {[%emt 0:06:15]} 21. Nxe4 {[%emt 0:00:18]} dxe4 {[%emt 0:00:04]} 22. Qh5 {[%emt 0:06:23]} Kh8 {[%emt 0:02:28]} 23. Ng3 {[%emt 0:04:05]} Bxb2 {[%emt 0:01:34]} 24. Rab1 {[%emt 0:00:37]} Be5 {[%emt 0:04:19]} 25. Nxe4 {[%emt 0:00:50]} f6 {[%emt 0:02:30]} 26. Nc5 {[%emt 0:02:41]} Bf7 {[%emt 0:01:25]} 27. Qf3 {[%emt 0:00:23]} b6 {[%emt 0:01:04]} 28. Nd3 {[%emt 0:00:07]} Bc3 {[%emt 0:02:04]} 29. Rbd1 {[%emt 0:01:48]} Rad8 {[%emt 0:00:47]} 30. Bc1 {[%emt 0:00:10]} Bd5 {[%emt 0:00:36]} 31. Qh3 {[%emt 0:00:46]} Bxa2 {[%emt 0:01:09]} 32. Nf2 {[%emt 0:00:17]} Qc8 {[%emt 0:02:29]} 33. Qe3 {[%emt 0:01:42]} Be5 {[%emt 0:00:23]} 34. Rxd8 {[%emt 0:00:26]} Rxd8 {[%emt 0:00:08]} 35. Nd3 {[%emt 0:00:02]} Bd4 {[%emt 0:00:31]} 36. Qg3 {[%emt 0:01:22]} Qxc2 {[%emt 0:00:36]} 37. Nb4 {[%emt 0:00:49]} Qc4 {[%emt 0:00:34]} 38. Rd1 {[%emt 0:00:24]} Qxb4 {[%emt 0:00:20]} 39. Qc7 {[%emt 0:00:04]} Qd6 {[%emt 0:00:29]} 40. Qxa7 {[%emt 0:00:14]} Bb3 {[%emt 0:00:49]} 41. Rd3 {[%emt 0:30:06]} Bc4 {[%emt 0:30:51]} 42. Rh3 $19 {[%emt 0:00:05]} Bg8 {[%emt 0:00:14]} 0-1

[Event "GER-ch-Seniors-50 2019"]
[Site "Radebeul"]
[Date "2019.05.01"]
[Round "6.1"]
[White "Metz, Hartmut"]
[Black "Nekrasov, Mihail"]
[Result "1/2-1/2"]
[ECO "B12"]
[WhiteElo "2251"]
[BlackElo "2277"]
[Annotator "NA"]
[PlyCount "56"]
[EventDate "2019.04.26"]
[EventType "swiss"]
[EventCountry "GER"]
[SourceTitle "playchess.com"]
[Source "ChessBase"]
[SourceQuality "1"]
[TimeControl "40/5400+30:1800+30"]

1. e4 {[%emt 0:00:00]} c6 {[%emt 0:00:46]} 2. d4 {[%emt 0:00:00]} d5 {[%emt 0:00:10]} 3. e5 {[%emt 0:03:07]} Bf5 {[%emt 0:00:16]} 4. Nf3 {[%emt 0:00:38]} e6 {[%emt 0:00:20]} 5. Be2 {[%emt 0:00:22]} Nd7 {[%emt 0:04:59]} 6. O-O {[%emt 0:00:06]} h6 {[%emt 0:00:15]} 7. Nbd2 {[%emt 0:09:29]} Ne7 {[%emt 0:01:15] B12: Caro-Kann: Advance Variation} 8. Nb3 {[%emt 0:00:49]} (8. c3 g5 9. Ne1 c5 10. Nc2 Nc6 11. Nb3 c4 12. Nd2 Bg6 13. Bh5 Bd3 14. Re1 Bg7 {0-1 (60) Vachier Lagrave,M (2779)-Nakamura,H (2777) chess.com INT 2018}) 8... g5 {[%emt 0:05:07]} 9. Ne1 {[%emt 0:10:43]} Bg7 {[%emt 0:13:48]} 10. Nd3 {[%emt 0:07:05]} Ng6 {[%emt 0:19:02]} 11. a4 $146 {[%emt 0:01:59]} ({Predecessor:} 11. Ndc5 Nxc5 12. Nxc5 Nf4 13. Nxb7 Nxe2+ 14. Qxe2 Qd7 {1-0 (30) Sammed Jaykumar,S (2351)-Deviatkin,A (2471) Mumbai 2018}) 11... a5 {[%emt 0:01:59]} 12. Bd2 {[%emt 0:00:37]} b6 {[%emt 0:00:13]} 13. Rc1 {[%emt 0:01:41]} c5 {[%emt 0:03:58]} 14. dxc5 {[%emt 0:03:50]} bxc5 {[%emt 0:10:05]} 15. Ndxc5 {[%emt 0:02:03]} Nxc5 {[%emt 0:01:05]} 16. Nxc5 {[%emt 0:00:07]} O-O {[%emt 0:00:05]} 17. g4 {[%emt 0:01:11]} Be4 {[%emt 0:02:23]} 18. f3 {[%emt 0:12:11]} Qb6 {[%emt 0:03:56]} 19. Be3 {[%emt 0:00:08]} d4 {[%emt 0:00:54]} (19... Rfc8 $1 $11 {remains equal.} 20. fxe4 Bf8) 20. Qxd4 {[%emt 0:01:39]} Bc6 {[%emt 0:00:27]} 21. Nxe6 $1 {[%emt 0:02:53] Discovered Attack} Qxd4 {[%emt 0:00:30]} 22. Nxd4 {[%emt 0:00:02]} Bxa4 {[%emt 0:00:23]} 23. Nf5 {[%emt 0:06:39]} Bxe5 {[%emt 0:02:34]} 24. b3 {[%emt 0:06:43]} Bd7 {[%emt 0:00:22]} 25. Nxh6+ {[%emt 0:07:26]} Kh7 {[%emt 0:00:13]} 26. Rcd1 {[%emt 0:02:28]} Be6 {[%emt 0:01:06] [#]} 27. Bxg5 {[%emt 0:00:40]} (27. Nf5 $1 $16) 27... Bf4 {[%emt 0:00:16]} 28. h4 $11 {[%emt 0:00:16]} f6 {[%emt 0:00:32]} 1/2-1/2